[Event "*** Titled Tuesday 3|2 Blitz"]
[Site "Chess.com"]
[Date "2015.12.01"]
[Round "6"]
[White "Herman-NY"]
[Black "Rating-Schmating"]
[Result "1-0"]
[WhiteElo "2186"]
[BlackElo "2079"]
[TimeControl "180+2"]
[EndTime "12:16:31 PST"]
[Termination "Herman-NY won by checkmate"]

1. e4 {[%clk 0:03:01.9]} 1... e6 {[%clk 0:03:01.9]} 2. d4 {[%clk 0:02:57.2]}
2... d5 {[%clk 0:03:01.6]} 3. Nd2 {[%clk 0:02:57.4]} 3... Nf6 {[%clk 0:03:00.9]}
4. e5 {[%clk 0:02:56.7]} 4... Nfd7 {[%clk 0:03:02.2]} 5. Bd3 {[%clk 0:02:57.2]}
5... c5 {[%clk 0:03:02.4]} 6. c3 {[%clk 0:02:58.7]} 6... Nc6 {[%clk 0:03:03.2]}
7. Ne2 {[%clk 0:02:58.9]} 7... f6 {[%clk 0:03:03.9]} 8. exf6 {[%clk 0:02:58.9]}
8... Nxf6 {[%clk 0:03:05.8]} 9. O-O {[%clk 0:02:58.3]} 9... cxd4 {[%clk
0:03:06.4]} 10. cxd4 {[%clk 0:02:59.2]} 10... Bd6 {[%clk 0:03:07.1]} 11. Nf3
{[%clk 0:03:00.4]} 11... O-O {[%clk 0:03:08.1]} 12. Bg5 {[%clk 0:03:01.4]} 12...
Qb6 {[%clk 0:03:06.4]} 13. b3 {[%clk 0:02:27.8]} 13... Bd7 {[%clk 0:03:00.4]}
14. Ng3 {[%clk 0:02:27.2]} 14... Rae8 {[%clk 0:02:56.1]} 15. Rc1 {[%clk
0:02:20]} 15... e5 {[%clk 0:02:45.9]} 16. dxe5 {[%clk 0:02:20.5]} 16... Nxe5
{[%clk 0:02:47.3]} 17. Nxe5 {[%clk 0:02:21.3]} 17... Bxe5 {[%clk 0:02:48.8]} 18.
Bb1 {[%clk 0:02:14.8]} 18... Bb5 {[%clk 0:02:45.2]} 19. Bd3 {[%clk 0:02:05.7]}
19... Bxd3 {[%clk 0:02:44.5]} 20. Qxd3 {[%clk 0:02:07.6]} 20... Bxg3 {[%clk
0:02:44.3]} 21. hxg3 {[%clk 0:02:07.5]} 21... Qe6 {[%clk 0:02:40.2]} 22. Be3
{[%clk 0:01:58]} 22... b6 {[%clk 0:02:38.5]} 23. Bd4 {[%clk 0:01:58.6]} 23...
Rc8 {[%clk 0:02:34.9]} 24. f3 {[%clk 0:01:57.5]} 24... Rfe8 {[%clk 0:02:28.7]}
25. Kf2 {[%clk 0:01:50.6]} 25... Qf7 {[%clk 0:02:25.9]} 26. Kg1 {[%clk
0:01:44.8]} 26... Qe6 {[%clk 0:02:25.7]} 27. Rxc8 {[%clk 0:01:40.3]} 27... Rxc8
{[%clk 0:02:26]} 28. Rd1 {[%clk 0:01:42.2]} 28... Rd8 {[%clk 0:02:22.9]} 29. Kf2
{[%clk 0:01:39.9]} 29... Qf7 {[%clk 0:02:21.6]} 30. Kg1 {[%clk 0:01:41]} 30...
Qe6 {[%clk 0:02:22]} 31. g4 {[%clk 0:01:41.5]} 31... h6 {[%clk 0:02:21]} 32. Qg6
{[%clk 0:01:17.2]} 32... Qf7 {[%clk 0:02:02]} 33. Qf5 {[%clk 0:01:15.3]} 33...
Qd7 {[%clk 0:01:56.3]} 34. Qf4 {[%clk 0:00:58.2]} 34... Qd6 {[%clk 0:01:51.9]}
35. Be5 {[%clk 0:00:56.6]} 35... Qc5+ {[%clk 0:01:47.5]} 36. Kh2 {[%clk
0:00:55.6]} 36... Qc6 {[%clk 0:01:43.4]} 37. Re1 {[%clk 0:00:51.3]} 37... Re8
{[%clk 0:01:31.2]} 38. Rd1 {[%clk 0:00:46.1]} 38... Qe6 {[%clk 0:01:31.2]} 39.
Bd4 {[%clk 0:00:45.6]} 39... Rd8 {[%clk 0:01:29.2]} 40. Rd3 {[%clk 0:00:43.2]}
40... Qd6 {[%clk 0:01:26.9]} 41. Be5 {[%clk 0:00:42.9]} 41... Qc6 {[%clk
0:01:27.6]} 42. Qf5 {[%clk 0:00:36.5]} 42... Qd7 {[%clk 0:01:26.8]} 43. Qf4
{[%clk 0:00:33.8]} 43... Qc6 {[%clk 0:01:27.7]} 44. Re3 {[%clk 0:00:32.4]} 44...
Nd7 {[%clk 0:01:20.4]} 45. Bxg7 {[%clk 0:00:18.4]} 45... Kxg7 {[%clk 0:00:59.8]}
46. Re7+ {[%clk 0:00:18.2]} 46... Kh8 {[%clk 0:01:01]} 47. Qf7 {[%clk
0:00:17.1]} 47... Qd6+ {[%clk 0:00:54.7]} 48. g3 {[%clk 0:00:15.1]} 48... Qxe7
{[%clk 0:00:44.7]} 49. Qxe7 {[%clk 0:00:17]} 49... Rc8 {[%clk 0:00:45.9]} 50.
Qxd7 {[%clk 0:00:17.2]} 50... Rc2+ {[%clk 0:00:47.1]} 51. Kh3 {[%clk 0:00:17.6]}
51... Rxa2 {[%clk 0:00:49]} 52. f4 {[%clk 0:00:17]} 52... a6 {[%clk 0:00:48.1]}
53. f5 {[%clk 0:00:18.3]} 53... b5 {[%clk 0:00:49.1]} 54. f6 {[%clk 0:00:19.5]}
54... Rf2 {[%clk 0:00:50.5]} 55. Qg7# {[%clk 0:00:19.6]} 1-0

[Event "*** Titled Tuesday 3|2 Blitz"]
[Site "Chess.com"]
[Date "2015.12.01"]
[Round "6"]
[White "Boryboy"]
[Black "Iball95"]
[Result "1-0"]
[WhiteElo "2524"]
[BlackElo "2421"]
[TimeControl "180+2"]
[EndTime "12:16:32 PST"]
[Termination "Boryboy won by checkmate"]

1. d4 {[%clk 0:03:01.9]} 1... Nf6 {[%clk 0:02:56.7]} 2. Nf3 {[%clk 0:03:02.8]}
2... g6 {[%clk 0:02:55.2]} 3. g3 {[%clk 0:03:03.7]} 3... Bg7 {[%clk 0:02:56]} 4.
Bg2 {[%clk 0:03:05.6]} 4... O-O {[%clk 0:02:57.3]} 5. O-O {[%clk 0:03:06.9]}
5... d5 {[%clk 0:02:58.3]} 6. c3 {[%clk 0:03:06.8]} 6... Bf5 {[%clk 0:02:53.3]}
7. Re1 {[%clk 0:03:04.6]} 7... Nbd7 {[%clk 0:02:50.7]} 8. Bf4 {[%clk 0:03:02.8]}
8... c5 {[%clk 0:02:49.3]} 9. Nbd2 {[%clk 0:03:03.1]} 9... Qb6 {[%clk
0:02:47.7]} 10. Qb3 {[%clk 0:03:03.2]} 10... cxd4 {[%clk 0:02:26.5]} 11. Nxd4
{[%clk 0:03:00.1]} 11... e5 {[%clk 0:02:04.1]} 12. Nxf5 {[%clk 0:02:57.9]} 12...
gxf5 {[%clk 0:02:02.7]} 13. Be3 {[%clk 0:02:57.6]} 13... Qxb3 {[%clk 0:02:01.8]}
14. Nxb3 {[%clk 0:02:52.1]} 14... Rfd8 {[%clk 0:01:49.5]} 15. Rad1 {[%clk
0:02:53.2]} 15... Nb6 {[%clk 0:01:45.4]} 16. Na5 {[%clk 0:02:47.2]} 16... Rab8
{[%clk 0:01:43.8]} 17. h3 {[%clk 0:02:39.4]} 17... Ne4 {[%clk 0:01:36.6]} 18. g4
{[%clk 0:02:28.7]} 18... fxg4 {[%clk 0:01:16.6]} 19. hxg4 {[%clk 0:02:30.6]}
19... h6 {[%clk 0:01:02.1]} 20. Bxe4 {[%clk 0:02:28.7]} 20... dxe4 {[%clk
0:01:02.5]} 21. Rxd8+ {[%clk 0:02:29.2]} 21... Rxd8 {[%clk 0:01:04.4]} 22. Nxb7
{[%clk 0:02:30.6]} 22... Rb8 {[%clk 0:01:00]} 23. Na5 {[%clk 0:02:29.5]} 23...
Na4 {[%clk 0:01:01.3]} 24. Nc4 {[%clk 0:02:25.2]} 24... Rc8 {[%clk 0:00:57.2]}
25. Nd6 {[%clk 0:02:25.3]} 25... Rb8 {[%clk 0:00:50.6]} 26. Bxa7 {[%clk
0:01:59.5]} 26... Rxb2 {[%clk 0:00:50.4]} 27. Nxe4 {[%clk 0:01:54.1]} 27... Rxa2
{[%clk 0:00:49.3]} 28. Be3 {[%clk 0:01:52.8]} 28... Rc2 {[%clk 0:00:46.8]} 29.
Bd2 {[%clk 0:01:53.1]} 29... Nb6 {[%clk 0:00:39.3]} 30. Rc1 {[%clk 0:01:51.9]}
30... Rxc1+ {[%clk 0:00:26.3]} 31. Bxc1 {[%clk 0:01:53.8]} 31... Bf8 {[%clk
0:00:27.8]} 32. Kg2 {[%clk 0:01:49]} 32... Kg7 {[%clk 0:00:29.1]} 33. Kf3 {[%clk
0:01:49.7]} 33... Kg6 {[%clk 0:00:30.5]} 34. Ng3 {[%clk 0:01:48.4]} 34... Nd5
{[%clk 0:00:29.8]} 35. Bd2 {[%clk 0:01:46.6]} 35... Bc5 {[%clk 0:00:29.6]} 36.
Nf5 {[%clk 0:01:38.8]} 36... Bf8 {[%clk 0:00:26.8]} 37. e4 {[%clk 0:01:31.4]}
37... Nb6 {[%clk 0:00:24.8]} 38. Ke2 {[%clk 0:01:32.8]} 38... Nc4 {[%clk
0:00:17.3]} 39. Bc1 {[%clk 0:01:28]} 39... Nb6 {[%clk 0:00:13.7]} 40. f3 {[%clk
0:01:28.3]} 40... Nc4 {[%clk 0:00:14.4]} 41. Kd3 {[%clk 0:01:29.4]} 41... Nb6
{[%clk 0:00:14]} 42. c4 {[%clk 0:01:30.7]} 42... Nd7 {[%clk 0:00:14.4]} 43. Be3
{[%clk 0:01:30.4]} 43... Bb4 {[%clk 0:00:14.7]} 44. Nxh6 {[%clk 0:01:27.5]}
44... f6 {[%clk 0:00:15.8]} 45. Nf5 {[%clk 0:01:28.5]} 45... Kf7 {[%clk
0:00:16.9]} 46. Kc2 {[%clk 0:01:25]} 46... Nb8 {[%clk 0:00:16.9]} 47. Kb3 {[%clk
0:01:25.8]} 47... Nc6 {[%clk 0:00:18.4]} 48. Ka4 {[%clk 0:01:26.6]} 48... Bf8
{[%clk 0:00:16.8]} 49. Kb5 {[%clk 0:01:27.1]} 49... Nd8 {[%clk 0:00:18]} 50. c5
{[%clk 0:01:26.7]} 50... Ke6 {[%clk 0:00:19.4]} 51. c6 {[%clk 0:01:28.2]} 51...
Bd6 {[%clk 0:00:17.9]} 52. Nxd6 {[%clk 0:01:22.8]} 52... Kxd6 {[%clk 0:00:19.8]}
53. Bc5+ {[%clk 0:01:24.3]} 53... Ke6 {[%clk 0:00:15.5]} 54. c7 {[%clk
0:01:25.8]} 54... f5 {[%clk 0:00:15.9]} 55. c8=Q+ {[%clk 0:01:26.2]} 55... Kf7
{[%clk 0:00:16.2]} 56. Qxf5+ {[%clk 0:01:25.9]} 56... Kg8 {[%clk 0:00:15.5]} 57.
Qg6+ {[%clk 0:01:25.9]} 57... Kh8 {[%clk 0:00:15.9]} 58. Be7 {[%clk 0:01:27.3]}
58... Ne6 {[%clk 0:00:17.8]} 59. Bf6+ {[%clk 0:01:29.2]} 59... Ng7 {[%clk
0:00:19.7]} 60. Bxe5 {[%clk 0:01:29.8]} 60... Kg8 {[%clk 0:00:19.8]} 61. Qxg7#
{[%clk 0:01:31.7]} 1-0

[Event "*** Titled Tuesday 3|2 Blitz"]
[Site "Chess.com"]
[Date "2015.12.01"]
[Round "6"]
[White "oskariot"]
[Black "LADIESGET2KNOWME"]
[Result "1-0"]
[WhiteElo "2255"]
[BlackElo "2229"]
[TimeControl "180+2"]
[EndTime "12:16:51 PST"]
[Termination "oskariot won by resignation"]

1. c4 {[%clk 0:03:01.9]} 1... Nf6 {[%clk 0:03:00.6]} 2. Nf3 {[%clk 0:03:02]}
2... g6 {[%clk 0:03:02.5]} 3. g3 {[%clk 0:03:02.6]} 3... Bg7 {[%clk 0:03:04.4]}
4. Bg2 {[%clk 0:03:04.2]} 4... O-O {[%clk 0:03:06.1]} 5. O-O {[%clk 0:03:05.9]}
5... d6 {[%clk 0:03:08]} 6. Nc3 {[%clk 0:03:06.8]} 6... Nc6 {[%clk 0:03:09.6]}
7. d3 {[%clk 0:03:08]} 7... e5 {[%clk 0:03:10.1]} 8. Rb1 {[%clk 0:03:07.3]} 8...
a5 {[%clk 0:03:10.2]} 9. a3 {[%clk 0:03:08.5]} 9... h6 {[%clk 0:03:11.7]} 10. b4
{[%clk 0:03:09.3]} 10... axb4 {[%clk 0:03:13.6]} 11. axb4 {[%clk 0:03:11]} 11...
Be6 {[%clk 0:03:15.5]} 12. b5 {[%clk 0:03:11.7]} 12... Ne7 {[%clk 0:03:15]} 13.
Nd2 {[%clk 0:03:10.3]} 13... c6 {[%clk 0:03:12]} 14. Qb3 {[%clk 0:03:10.3]}
14... Qd7 {[%clk 0:03:13]} 15. Bb2 {[%clk 0:03:04.2]} 15... Bh3 {[%clk
0:03:11.8]} 16. Ra1 {[%clk 0:02:54.2]} 16... Bxg2 {[%clk 0:03:10.7]} 17. Kxg2
{[%clk 0:02:55.1]} 17... Nf5 {[%clk 0:03:04.4]} 18. e3 {[%clk 0:02:52.6]} 18...
h5 {[%clk 0:03:02.3]} 19. h3 {[%clk 0:02:47.7]} 19... d5 {[%clk 0:02:51.8]} 20.
bxc6 {[%clk 0:02:08.9]} 20... bxc6 {[%clk 0:02:53.7]} 21. Rxa8 {[%clk
0:02:08.5]} 21... Rxa8 {[%clk 0:02:54]} 22. Na4 {[%clk 0:02:09.7]} 22... Re8
{[%clk 0:02:45.3]} 23. Nc5 {[%clk 0:02:00.3]} 23... Qc7 {[%clk 0:02:31.5]} 24.
Rc1 {[%clk 0:01:49.5]} 24... d4 {[%clk 0:02:10]} 25. e4 {[%clk 0:01:43.7]} 25...
Nd6 {[%clk 0:02:06.3]} 26. Ba3 {[%clk 0:01:42.8]} 26... Bh6 {[%clk 0:01:59.8]}
27. Rc2 {[%clk 0:01:41.2]} 27... Bxd2 {[%clk 0:01:56.5]} 28. Rxd2 {[%clk
0:01:41.8]} 28... h4 {[%clk 0:01:54.2]} 29. g4 {[%clk 0:01:41.4]} 29... Nh7
{[%clk 0:01:52.3]} 30. Qb4 {[%clk 0:01:30.7]} 30... Rd8 {[%clk 0:01:25.1]} 31.
Rb2 {[%clk 0:01:24.2]} 31... Ng5 {[%clk 0:01:18.3]} 32. Qb6 {[%clk 0:01:18.9]}
32... Qxb6 {[%clk 0:00:59.9]} 33. Rxb6 {[%clk 0:01:19.7]} 33... Ra8 {[%clk
0:01:01.5]} 34. Bc1 {[%clk 0:01:17.9]} 34... Nh7 {[%clk 0:00:31.6]} 35. Rxc6
{[%clk 0:01:18.5]} 35... Ne8 {[%clk 0:00:31.3]} 36. Nd7 {[%clk 0:01:06]} 36...
f6 {[%clk 0:00:29]} 37. Bb2 {[%clk 0:00:48.9]} 37... Ra2 {[%clk 0:00:29.4]} 38.
Rb6 {[%clk 0:00:49.9]} 38... Nc7 {[%clk 0:00:25.2]} 39. c5 {[%clk 0:00:49.7]}
39... Ne6 {[%clk 0:00:26.1]} 40. Rxe6 {[%clk 0:00:49.1]} 40... Rxb2 {[%clk
0:00:27.4]} 41. Rb6 {[%clk 0:00:34.6]} 41... Rc2 {[%clk 0:00:21.9]} 42. Nxf6+
{[%clk 0:00:33.4]} 42... Nxf6 {[%clk 0:00:23.1]} 43. Rxf6 {[%clk 0:00:34.7]}
43... Kg7 {[%clk 0:00:20.1]} 44. Rc6 {[%clk 0:00:34.9]} 44... Kh6 {[%clk
0:00:20.9]} 45. Kf3 {[%clk 0:00:30.5]} 45... Rd2 {[%clk 0:00:20.2]} 46. Re6
{[%clk 0:00:30.9]} 46... Rxd3+ {[%clk 0:00:21.2]} 47. Kg2 {[%clk 0:00:32.1]}
47... Rc3 {[%clk 0:00:14.9]} 48. Rxe5 {[%clk 0:00:33.2]} 48... d3 {[%clk
0:00:16.8]} 49. Rd5 {[%clk 0:00:34.3]} 49... g5 {[%clk 0:00:15]} 50. Kf3 {[%clk
0:00:33.4]} 50... d2+ {[%clk 0:00:13.6]} 51. Kg2 {[%clk 0:00:33.6]} 51... Rxh3
{[%clk 0:00:15.5]} 52. Kxh3 {[%clk 0:00:34.2]} 1-0

[Event "*** Titled Tuesday 3|2 Blitz"]
[Site "Chess.com"]
[Date "2015.12.01"]
[Round "6"]
[White "chessmaxusa"]
[Black "AndroQueen"]
[Result "0-1"]
[WhiteElo "2315"]
[BlackElo "2294"]
[TimeControl "180+2"]
[EndTime "12:16:56 PST"]
[Termination "AndroQueen won by checkmate"]

1. d4 {[%clk 0:03:01.9]} 1... Nf6 {[%clk 0:03:00.8]} 2. Nf3 {[%clk 0:03:03]}
2... g6 {[%clk 0:03:01.7]} 3. Bf4 {[%clk 0:03:04.5]} 3... Bg7 {[%clk 0:03:02.8]}
4. e3 {[%clk 0:03:05.7]} 4... O-O {[%clk 0:03:03.9]} 5. h3 {[%clk 0:03:07.2]}
5... d6 {[%clk 0:03:04.9]} 6. Be2 {[%clk 0:03:08.8]} 6... Nbd7 {[%clk
0:03:05.7]} 7. O-O {[%clk 0:03:10.3]} 7... b6 {[%clk 0:03:06.6]} 8. c3 {[%clk
0:03:11.6]} 8... Bb7 {[%clk 0:03:07.7]} 9. Nbd2 {[%clk 0:03:13.3]} 9... Re8
{[%clk 0:03:08.5]} 10. a4 {[%clk 0:03:13.9]} 10... a6 {[%clk 0:03:05.5]} 11. Bh2
{[%clk 0:03:14.1]} 11... e5 {[%clk 0:03:03.5]} 12. Nc4 {[%clk 0:03:14.4]} 12...
Ne4 {[%clk 0:03:01.7]} 13. Re1 {[%clk 0:03:12.4]} 13... Qe7 {[%clk 0:03:00.7]}
14. Bf1 {[%clk 0:03:12.7]} 14... Ng5 {[%clk 0:02:47.3]} 15. Nxg5 {[%clk
0:02:58.3]} 15... Qxg5 {[%clk 0:02:47.3]} 16. Qb3 {[%clk 0:02:38.7]} 16... Rab8
{[%clk 0:02:13.7]} 17. Rad1 {[%clk 0:02:32.5]} 17... Qe7 {[%clk 0:02:10.5]} 18.
Qa3 {[%clk 0:02:31]} 18... h5 {[%clk 0:02:02.8]} 19. b4 {[%clk 0:02:25.4]} 19...
Kh7 {[%clk 0:01:54.4]} 20. Nb2 {[%clk 0:02:09.2]} 20... Nf6 {[%clk 0:01:49.9]}
21. dxe5 {[%clk 0:02:01.8]} 21... dxe5 {[%clk 0:01:50.8]} 22. Qb3 {[%clk
0:01:59.1]} 22... Ne4 {[%clk 0:01:47.4]} 23. Nc4 {[%clk 0:01:50.7]} 23... Rbd8
{[%clk 0:01:39.9]} 24. f3 {[%clk 0:01:41.5]} 24... Ng5 {[%clk 0:01:32.9]} 25. e4
{[%clk 0:01:38.8]} 25... Bc8 {[%clk 0:01:07.6]} 26. Ne3 {[%clk 0:01:35.1]} 26...
Bxh3 {[%clk 0:00:48.1]} 27. Bxa6 {[%clk 0:01:24.8]} 27... Rxd1 {[%clk
0:00:42.7]} 28. Qxd1 {[%clk 0:01:21.1]} 28... Be6 {[%clk 0:00:38.4]} 29. Qc2
{[%clk 0:01:09.9]} 29... h4 {[%clk 0:00:33.9]} 30. Kf2 {[%clk 0:01:09.2]} 30...
h3 {[%clk 0:00:33.6]} 31. g4 {[%clk 0:01:09.6]} 31... Qf6 {[%clk 0:00:28.8]} 32.
Nf5 {[%clk 0:00:52.4]} 32... gxf5 {[%clk 0:00:27.5]} 33. gxf5 {[%clk 0:00:47.4]}
33... Bc8 {[%clk 0:00:22.4]} 34. Bc4 {[%clk 0:00:40.1]} 34... Bh6 {[%clk
0:00:15.8]} 35. Bg3 {[%clk 0:00:39.2]} 35... Rg8 {[%clk 0:00:16.8]} 36. Rh1
{[%clk 0:00:36.1]} 36... Qg7 {[%clk 0:00:14.2]} 37. Rg1 {[%clk 0:00:30.8]} 37...
h2 {[%clk 0:00:13.9]} 38. Bxh2 {[%clk 0:00:13.6]} 38... Nh3+ {[%clk 0:00:14.8]}
39. Kf1 {[%clk 0:00:14.9]} 39... Nxg1 {[%clk 0:00:12.6]} 40. Qf2 {[%clk
0:00:15.2]} 40... Qg5 {[%clk 0:00:12.5]} 41. Bxg1 {[%clk 0:00:10.5]} 41... Qc1+
{[%clk 0:00:13.5]} 42. Qe1 {[%clk 0:00:11.8]} 42... Rxg1+ {[%clk 0:00:13.6]} 43.
Kxg1 {[%clk 0:00:12.5]} 43... Qxe1+ {[%clk 0:00:14.3]} 44. Kg2 {[%clk
0:00:14.4]} 44... Qxc3 {[%clk 0:00:15.5]} 45. Bxf7 {[%clk 0:00:15]} 45... Qxb4
{[%clk 0:00:16.8]} 46. Kg3 {[%clk 0:00:15.9]} 46... Bf4+ {[%clk 0:00:17]} 47.
Kg4 {[%clk 0:00:17.8]} 47... Qe1 {[%clk 0:00:17.6]} 48. Bg6+ {[%clk 0:00:19.2]}
48... Kg7 {[%clk 0:00:18.9]} 49. Kh3 {[%clk 0:00:19.8]} 49... Qg3# {[%clk
0:00:19.8]} 0-1

[Event "*** Titled Tuesday 3|2 Blitz"]
[Site "Chess.com"]
[Date "2015.12.01"]
[Round "6"]
[White "pKiLz5Rn9b"]
[Black "Keranke"]
[Result "1/2-1/2"]
[WhiteElo "2474"]
[BlackElo "2593"]
[TimeControl "180+2"]
[EndTime "12:19:43 PST"]
[Termination "Game drawn by agreement"]

1. e4 {[%clk 0:03:01.9]} 1... c5 {[%clk 0:02:58]} 2. c3 {[%clk 0:03:03]} 2... d5
{[%clk 0:02:58.5]} 3. exd5 {[%clk 0:03:04.2]} 3... Qxd5 {[%clk 0:02:59.7]} 4. d4
{[%clk 0:03:05.6]} 4... Nf6 {[%clk 0:03:01]} 5. Nf3 {[%clk 0:03:06.7]} 5... e6
{[%clk 0:03:02.4]} 6. Na3 {[%clk 0:03:06.8]} 6... a6 {[%clk 0:03:03.8]} 7. Nc4
{[%clk 0:03:05.2]} 7... Nbd7 {[%clk 0:03:04.9]} 8. Ne3 {[%clk 0:03:02.7]} 8...
Qc6 {[%clk 0:03:05.7]} 9. Bd3 {[%clk 0:03:03.5]} 9... b6 {[%clk 0:03:05.6]} 10.
O-O {[%clk 0:03:01.2]} 10... Bb7 {[%clk 0:03:06.8]} 11. Re1 {[%clk 0:02:59.5]}
11... Be7 {[%clk 0:03:00.5]} 12. b3 {[%clk 0:02:56.1]} 12... cxd4 {[%clk
0:02:56.8]} 13. cxd4 {[%clk 0:02:56.7]} 13... O-O {[%clk 0:02:39.8]} 14. Bb2
{[%clk 0:02:57.2]} 14... b5 {[%clk 0:02:41.3]} 15. Ne5 {[%clk 0:02:36.5]} 15...
Qb6 {[%clk 0:02:29.6]} 16. Nxd7 {[%clk 0:02:15.1]} 16... Nxd7 {[%clk 0:02:31.5]}
17. d5 {[%clk 0:02:16.6]} 17... exd5 {[%clk 0:02:15.4]} 18. Nxd5 {[%clk
0:02:08.4]} 18... Bxd5 {[%clk 0:02:17.3]} 19. Rxe7 {[%clk 0:02:09.3]} 19... Nf6
{[%clk 0:02:07.3]} 20. Re3 {[%clk 0:01:59.6]} 20... Rad8 {[%clk 0:01:59.7]} 21.
Qe2 {[%clk 0:01:56.2]} 21... Rfe8 {[%clk 0:01:31.1]} 22. Re1 {[%clk 0:01:52.3]}
22... Rxe3 {[%clk 0:01:31.8]} 23. Qxe3 {[%clk 0:01:53.6]} 23... Qd6 {[%clk
0:01:24.4]} 24. Be5 {[%clk 0:01:45.9]} 24... Qe6 {[%clk 0:01:11.7]} 25. h3
{[%clk 0:01:46]} 25... Nd7 {[%clk 0:00:51.4]} 26. Qf4 {[%clk 0:01:10.3]} 26...
Nxe5 {[%clk 0:00:26.1]} 27. Rxe5 {[%clk 0:01:11.4]} 27... Qd7 {[%clk 0:00:18.3]}
28. Bf5 {[%clk 0:01:04]} 28... Be6 {[%clk 0:00:12.9]} 29. Bxe6 {[%clk
0:00:58.7]} 29... fxe6 {[%clk 0:00:14.8]} 30. Qe3 {[%clk 0:01:00.3]} 30... Re8
{[%clk 0:00:14.3]} 31. h4 {[%clk 0:00:57.7]} 31... Qd6 {[%clk 0:00:15.5]} 32. h5
{[%clk 0:00:52.1]} 32... Rc8 {[%clk 0:00:14.7]} 33. h6 {[%clk 0:00:47]} 33...
Qd1+ {[%clk 0:00:06.6]} 34. Kh2 {[%clk 0:00:47.2]} 34... Qg4 {[%clk 0:00:07.7]}
35. Rxe6 {[%clk 0:00:29.4]} 35... Qh5+ {[%clk 0:00:06.7]} 36. Qh3 {[%clk
0:00:27.3]} 36... Qxh3+ {[%clk 0:00:07.7]} 37. Kxh3 {[%clk 0:00:28.8]} 37... Rc2
{[%clk 0:00:06.9]} 38. Rxa6 {[%clk 0:00:29.8]} 38... gxh6 {[%clk 0:00:05.7]} 39.
Kg3 {[%clk 0:00:31.2]} 39... Kg7 {[%clk 0:00:06.8]} 40. Ra5 {[%clk 0:00:26.3]}
40... Kg6 {[%clk 0:00:06.7]} 41. Rxb5 {[%clk 0:00:24.5]} 41... Rxa2 {[%clk
0:00:07.6]} 42. b4 {[%clk 0:00:26]} 42... Rb2 {[%clk 0:00:09]} 43. Rb6+ {[%clk
0:00:25.7]} 43... Kg5 {[%clk 0:00:10]} 44. Rb5+ {[%clk 0:00:19.8]} 44... Kg6
{[%clk 0:00:11.4]} 45. f3 {[%clk 0:00:21.7]} 45... h5 {[%clk 0:00:12.2]} 46.
Rb6+ {[%clk 0:00:22.8]} 46... Kg5 {[%clk 0:00:13.1]} 47. Rb5+ {[%clk 0:00:24.3]}
47... Kg6 {[%clk 0:00:14.6]} 48. Kh3 {[%clk 0:00:26.2]} 48... h4 {[%clk
0:00:14]} 49. f4 {[%clk 0:00:21]} 49... h6 {[%clk 0:00:11.8]} 50. Kh2 {[%clk
0:00:17.5]} 50... Rb3 {[%clk 0:00:11.9]} 51. Kg1 {[%clk 0:00:15.4]} 51... Rb2
{[%clk 0:00:12.7]} 52. Kf1 {[%clk 0:00:16.2]} 52... Kg7 {[%clk 0:00:07.5]} 53.
Rb6 {[%clk 0:00:15.9]} 53... Kh7 {[%clk 0:00:04.8]} 54. Kg1 {[%clk 0:00:17.1]}
54... Kg7 {[%clk 0:00:05.8]} 55. Kh2 {[%clk 0:00:18.5]} 55... Rb3 {[%clk
0:00:07.4]} 56. f5 {[%clk 0:00:18.4]} 56... h5 {[%clk 0:00:04.7]} 57. b5 {[%clk
0:00:16.8]} 57... Kf7 {[%clk 0:00:05.6]} 58. Kg1 {[%clk 0:00:16.8]} 58... Rb2
{[%clk 0:00:06.9]} 59. Kh2 {[%clk 0:00:17.9]} 59... Rb3 {[%clk 0:00:08]} 60. Rh6
{[%clk 0:00:15.1]} 60... h3 {[%clk 0:00:08]} 61. g3 {[%clk 0:00:13.2]} 61... h4
{[%clk 0:00:08.2]} 62. Rxh4 {[%clk 0:00:14.1]} 62... Rxb5 {[%clk 0:00:09.4]} 63.
g4 {[%clk 0:00:14.9]} 63... Kf6 {[%clk 0:00:11]} 64. Rxh3 {[%clk 0:00:14.7]}
64... Kg5 {[%clk 0:00:11.8]} 65. Rg3 {[%clk 0:00:14.6]} 65... Rb2+ {[%clk
0:00:11.7]} 66. Kh3 {[%clk 0:00:15.7]} 66... Rb4 {[%clk 0:00:12.7]} 67. Kg2
{[%clk 0:00:10]} 67... Rb2+ {[%clk 0:00:11.4]} 68. Kf1 {[%clk 0:00:11.2]} 68...
Ra2 {[%clk 0:00:10.6]} 69. Rg2 {[%clk 0:00:08.7]} 69... Ra3 {[%clk 0:00:07.3]}
70. Kf2 {[%clk 0:00:09.6]} 70... Rb3 {[%clk 0:00:08.9]} 71. Kg1 {[%clk
0:00:10.3]} 71... Ra3 {[%clk 0:00:09.9]} 72. Kf1 {[%clk 0:00:07.6]} 72... Rb3
{[%clk 0:00:11.1]} 73. Ke2 {[%clk 0:00:08.7]} 73... Ra3 {[%clk 0:00:09.7]} 74.
Rg1 {[%clk 0:00:08.8]} 74... Rb3 {[%clk 0:00:09]} 75. Kd2 {[%clk 0:00:09.6]}
75... Ra3 {[%clk 0:00:10.6]} 76. Kc2 {[%clk 0:00:10.7]} 76... Rf3 {[%clk
0:00:11.8]} 77. Kd2 {[%clk 0:00:09]} 77... Ra3 {[%clk 0:00:13]} 78. Ke2 {[%clk
0:00:10.5]} 78... Rb3 {[%clk 0:00:14.3]} 79. Rg2 {[%clk 0:00:05.2]} 79... Ra3
{[%clk 0:00:15.2]} 80. Rg1 {[%clk 0:00:06.8]} 80... Rb3 {[%clk 0:00:16.5]} 81.
Rf1 {[%clk 0:00:08.4]} 81... Kxg4 {[%clk 0:00:16.4]} 82. f6 {[%clk 0:00:09.9]}
82... Rb8 {[%clk 0:00:16.3]} 83. Ke3 {[%clk 0:00:11.1]} 83... Kg5 {[%clk
0:00:16.4]} 84. Ke4 {[%clk 0:00:11]} 84... Kg6 {[%clk 0:00:17.2]} 85. Ke5 {[%clk
0:00:11.4]} 85... Kf7 {[%clk 0:00:18.6]} 1/2-1/2

[Event "*** Titled Tuesday 3|2 Blitz"]
[Site "Chess.com"]
[Date "2015.12.01"]
[Round "7"]
[White "SlovenskiZmaj"]
[Black "oskariot"]
[Result "1-0"]
[WhiteElo "2305"]
[BlackElo "2248"]
[TimeControl "180+2"]
[EndTime "12:26:53 PST"]
[Termination "SlovenskiZmaj won by resignation"]

1. e4 {[%clk 0:02:54.3]} 1... c5 {[%clk 0:03:00.5]} 2. c3 {[%clk 0:02:55.2]}
2... Qa5 {[%clk 0:03:00]} 3. Nf3 {[%clk 0:02:55]} 3... Nc6 {[%clk 0:03:00.1]} 4.
Bc4 {[%clk 0:02:56.5]} 4... d6 {[%clk 0:02:53.2]} 5. O-O {[%clk 0:02:57.4]} 5...
Nf6 {[%clk 0:02:54.2]} 6. Re1 {[%clk 0:02:56]} 6... e6 {[%clk 0:02:48.1]} 7. d4
{[%clk 0:02:47.9]} 7... cxd4 {[%clk 0:02:45.7]} 8. cxd4 {[%clk 0:02:49.8]} 8...
d5 {[%clk 0:02:47.1]} 9. exd5 {[%clk 0:02:44]} 9... Nxd5 {[%clk 0:02:48.3]} 10.
Bxd5 {[%clk 0:02:45]} 10... Qxd5 {[%clk 0:02:48.7]} 11. Nc3 {[%clk 0:02:46.6]}
11... Qd8 {[%clk 0:02:34.4]} 12. d5 {[%clk 0:02:45.5]} 12... Nb4 {[%clk
0:02:35.7]} 13. a3 {[%clk 0:02:36.1]} 13... Na6 {[%clk 0:02:32.2]} 14. Bg5
{[%clk 0:02:13.5]} 14... Be7 {[%clk 0:02:26.2]} 15. Bxe7 {[%clk 0:02:14.6]}
15... Qxe7 {[%clk 0:02:26.6]} 16. d6 {[%clk 0:02:11.4]} 16... Qd8 {[%clk
0:02:26.8]} 17. Ne5 {[%clk 0:02:11.1]} 17... Nb8 {[%clk 0:02:23.1]} 18. Nd5
{[%clk 0:01:13.1]} 18... Na6 {[%clk 0:02:19.7]} 19. Qf3 {[%clk 0:01:00]} 19...
Rf8 {[%clk 0:02:04.3]} 20. Rad1 {[%clk 0:00:54.4]} 20... Bd7 {[%clk 0:02:02.7]}
21. Nc7+ {[%clk 0:00:50.7]} 21... Nxc7 {[%clk 0:01:59]} 22. dxc7 {[%clk
0:00:52.6]} 1-0